[Event "Summer Prague Open-A 2022"]
[Site "Prague"]
[Date "2022.08.07"]
[Round "3.13"]
[White "Gorkiewicz, Mateusz"]
[Black "Nemeth, Zalan"]
[Result "1/2-1/2"]
[ECO "B47"]
[WhiteElo "2023"]
[BlackElo "2194"]
[Annotator "NA RC"]
[PlyCount "94"]
[EventDate "2022.08.05"]
[EventType "swiss"]
[EventCountry "CZE"]
[SourceTitle "playchess.com"]
[Source "ChessBase"]
[SourceQuality "1"]
[TimeControl "40/5400+30:1800+30"]

1. e4 {[%emt 0:00:03]} c5 {[%emt 0:06:29]} 2. Nf3 {[%emt 0:00:15]} e6 {[%emt 0:00:04]} 3. d4 {[%emt 0:00:06]} cxd4 {[%emt 0:00:03]} 4. Nxd4 {[%emt 0:00:08]} Nc6 {[%emt 0:00:03]} 5. Nc3 {[%emt 0:00:20]} Qc7 {[%emt 0:03:01]} 6. Nb3 {[%emt 0:00:30]} a6 {[%emt 0:00:25]} 7. Bd3 {[%emt 0:00:18]} Nf6 {[%emt 0:01:48]} 8. O-O {[%emt 0:00:22]} b5 {[%emt 0:00:11]} 9. f4 {[%emt 0:00:19]} d6 {[%emt 0:00:17]} 10. Qf3 {[%emt 0:00:21]} Bb7 {[%emt 0:00:44]} 11. Bd2 {[%emt 0:00:26]} g6 {[%emt 0:02:24]} 12. Qh3 {[%emt 0:11:26]} Bg7 {[%emt 0:00:34]} 13. f5 {[%emt 0:02:54]} Ne5 {[%emt 0:12:23]} 14. fxe6 {[%emt 0:05:09]} O-O {[%emt 0:01:36]} 15. Bg5 {[%emt 0:08:38]} Neg4 {[%emt 0:15:07]} (15... b4 $11) 16. Qh4 $11 {[%emt 0:19:53]} (16. Nd5 $14 Nxd5 17. Qxg4 (17. exd5 f5 $15)) 16... b4 {[%emt 0:14:11]} 17. Nd5 {[%emt 0:06:23]} Nxd5 {[%emt 0:02:55]} 18. Qxg4 {[%emt 0:05:52]} f6 {[%emt 0:01:22]} 19. exd5 {[%emt 0:06:34]} fxg5 {[%emt 0:03:03]} 20. Qxg5 {[%emt 0:00:17]} Bxb2 {[%emt 0:09:18]} 21. e7 {[%emt 0:09:59]} Rxf1+ {[%emt 0:00:17]} 22. Rxf1 {[%emt 0:00:09]} Bg7 {[%emt 0:00:44]} 23. h4 {[%emt 0:02:32]} Re8 {[%emt 0:00:32]} 24. Re1 {[%emt 0:01:17]} Bc8 {[%emt 0:02:04]} 25. h5 {[%emt 0:01:11]} Qc3 {[%emt 0:02:45]} 26. Qg3 {[%emt 0:07:00]} Bf5 {[%emt 0:08:50]} 27. hxg6 {[%emt 0:02:04]} hxg6 {[%emt 0:03:33]} 28. Re3 {[%emt 0:01:37]} Bh6 {[%emt 0:05:12]} 29. Rf3 {[%emt 0:01:44]} Bxd3 {[%emt 0:01:05]} 30. cxd3 {[%emt 0:02:39]} Qg7 {[%emt 0:02:47]} 31. Qxd6 {[%emt 0:00:21]} Rxe7 {[%emt 0:00:07]} 32. Qb8+ {[%emt 0:02:09]} Kh7 {[%emt 0:00:07]} 33. Qxb4 {[%emt 0:01:17]} Qe5 {[%emt 0:01:08]} 34. d6 {[%emt 0:02:15]} Rd7 {[%emt 0:00:25]} 35. Qd4 {[%emt 0:00:50]} Qxd4+ {[%emt 0:01:10]} 36. Nxd4 {[%emt 0:00:04]} Rxd6 {[%emt 0:00:02]} 37. Nb3 {[%emt 0:00:21]} Kg7 {[%emt 0:00:57]} 38. d4 {[%emt 0:00:58]} Bg5 {[%emt 0:01:02]} 39. Kf2 {[%emt 0:00:26]} Rb6 {[%emt 0:00:42]} 40. Ke2 {[%emt 0:00:48]} a5 {[%emt 0:00:28]} 41. Kd3 {[%emt 0:01:13]} Bf6 {[%emt 0:04:59]} 42. d5 {[%emt 0:08:31]} Rb4 {[%emt 0:05:50]} 43. Nxa5 {[%emt 0:05:18]} Rd4+ {[%emt 0:00:17]} 44. Kc2 {[%emt 0:00:21]} Ra4 {[%emt 0:00:07]} 45. Nb3 {[%emt 0:01:47]} Rxa2+ {[%emt 0:00:06]} 46. Kd3 {[%emt 0:00:11]} Rxg2 {[%emt 0:00:04]} 47. d6 {[%emt 0:00:32]} Rg5 {[%emt 0:03:02]} 1/2-1/2

[Event "Summer Prague Open-A 2022"]
[Site "Prague"]
[Date "2022.08.07"]
[Round "3.14"]
[White "Fiskaaen, Martin Holten"]
[Black "Polster, Christian"]
[Result "1/2-1/2"]
[ECO "D37"]
[WhiteElo "1930"]
[BlackElo "2236"]
[Annotator "NA RC"]
[PlyCount "169"]
[EventDate "2022.08.05"]
[EventType "swiss"]
[EventCountry "CZE"]
[SourceTitle "playchess.com"]
[Source "ChessBase"]
[SourceQuality "1"]
[TimeControl "40/5400+30:1800+30"]

1. d4 {[%emt 0:00:06]} Nf6 {[%emt 0:00:30]} 2. c4 {[%emt 0:00:11]} e6 {[%emt 0:00:07]} 3. Nf3 {[%emt 0:00:10]} d5 {[%emt 0:00:17]} 4. Nc3 {[%emt 0:00:09]} Nbd7 {[%emt 0:00:17]} 5. Bf4 {[%emt 0:01:08]} dxc4 {[%emt 0:00:50]} 6. e3 {[%emt 0:00:14]} Nd5 {[%emt 0:00:42]} 7. Bxc4 {[%emt 0:03:44]} Nxf4 {[%emt 0:02:14]} 8. exf4 {[%emt 0:00:12]} Nb6 {[%emt 0:00:11] 8...Nb6 scores better than 8...Bd6.} 9. Bb3 {[%emt 0:10:40]} g6 {[%emt 0:00:18]} 10. O-O {[%emt 0:01:44]} Bg7 {[%emt 0:00:13]} 11. Qe2 {[%emt 0:14:08]} O-O {[%emt 0:01:28]} 12. g3 {[%emt 0:02:54]} a5 {[%emt 0:01:00]} 13. a3 {[%emt 0:03:28] [#]} a4 $146 {[%emt 0:01:11]} ({Predecessor:} 13... Nd5 14. Rac1 Nxc3 15. bxc3 Qd6 16. a4 b6 17. Ne5 Ba6 18. Bc4 Bb7 19. Rcd1 c5 {½-½ (27) Ferre Perez,A (2155)-Jimenez Pulido,G (2176) ICCF email 2013}) 14. Ba2 {[%emt 0:00:36]} Bd7 {[%emt 0:00:48]} ({Don't do} 14... Bxd4 15. Rfd1 c5 16. Nxd4 cxd4 17. Qe5 $16) 15. Ne5 {[%emt 0:02:21]} Bc6 {[%emt 0:07:34]} 16. Nxc6 {[%emt 0:12:23]} bxc6 {[%emt 0:00:10]} 17. Rfd1 {[%emt 0:00:10]} Qb8 {[%emt 0:19:23]} 18. Ne4 {[%emt 0:04:20]} Rd8 {[%emt 0:02:33]} 19. Ng5 {[%emt 0:03:14]} (19. Rac1 $14) 19... Nd5 {[%emt 0:02:54]} 20. Rac1 $11 {[%emt 0:03:50]} Qb6 {[%emt 0:07:20]} 21. Nf3 {[%emt 0:02:38]} Ra5 {[%emt 0:19:16]} 22. Ne5 {[%emt 0:03:30]} Rb5 {[%emt 0:03:31]} 23. Rc2 {[%emt 0:00:33]} Bxe5 {[%emt 0:10:07]} 24. dxe5 {[%emt 0:01:03]} Rb8 {[%emt 0:01:16]} 25. Rdd2 {[%emt 0:00:34]} Rc5 {[%emt 0:01:54]} 26. Rxc5 {[%emt 0:09:43]} Qxc5 {[%emt 0:00:30]} 27. Rc2 {[%emt 0:00:35]} Qd4 {[%emt 0:01:23]} 28. Qd2 {[%emt 0:01:26]} Qxd2 {[%emt 0:03:05]} 29. Rxd2 {[%emt 0:00:01]} Kf8 {[%emt 0:00:29]} 30. Kf1 {[%emt 0:04:45]} Ke7 {[%emt 0:02:04]} 31. Ke2 {[%emt 0:00:25]} Kd7 {[%emt 0:01:36]} 32. Kd1 {[%emt 0:02:12]} Rb5 {[%emt 0:01:46]} 33. Bc4 {[%emt 0:09:47]} Rc5 {[%emt 0:01:49]} 34. Bd3 {[%emt 0:00:36]} Ra5 {[%emt 0:01:57]} 35. Bc2 {[%emt 0:01:00]} c5 {[%emt 0:00:52]} 36. Re2 {[%emt 0:01:34]} Kc6 {[%emt 0:00:23]} 37. Re4 {[%emt 0:00:46]} Nb6 {[%emt 0:00:29]} 38. Kd2 {[%emt 0:00:54]} Ra8 {[%emt 0:03:08]} 39. h4 {[%emt 0:01:20]} Kb5 {[%emt 0:01:51]} 40. Bd3+ {[%emt 0:00:44]} c4 {[%emt 0:00:28]} 41. Be2 {[%emt 0:20:10]} Rd8+ {[%emt 0:04:31]} 42. Kc3 {[%emt 0:00:45]} Nd5+ {[%emt 0:06:18]} 43. Kc2 {[%emt 0:00:11]} Nb6 {[%emt 0:00:18]} 44. Kc3 {[%emt 0:00:26]} c5 {[%emt 0:10:26]} 45. Bxc4+ {[%emt 0:04:48]} Nxc4 {[%emt 0:00:14]} 46. Rxc4 {[%emt 0:00:07]} Rd1 {[%emt 0:00:55]} 47. Re4 {[%emt 0:00:26]} Rc1+ {[%emt 0:00:38]} 48. Kd2 {[%emt 0:01:01]} Rf1 {[%emt 0:00:50]} 49. Re2 {[%emt 0:00:18]} Kc4 {[%emt 0:00:17]} 50. Kc2 {[%emt 0:00:37]} h5 {[%emt 0:09:17]} 51. Rd2 {[%emt 0:02:16]} Re1 {[%emt 0:01:18]} 52. Rd7 {[%emt 0:03:00]} Re2+ {[%emt 0:00:19]} 53. Kc1 {[%emt 0:00:36]} Kb3 {[%emt 0:02:50]} 54. Rxf7 {[%emt 0:01:05]} Rc2+ {[%emt 0:00:21]} 55. Kd1 {[%emt 0:00:19]} Kxb2 {[%emt 0:00:49]} 56. Rf6 {[%emt 0:01:20]} Rc4 {[%emt 0:00:37]} 57. Rxg6 {[%emt 0:00:58]} Rd4+ {[%emt 0:00:11]} 58. Ke2 {[%emt 0:00:08]} c4 {[%emt 0:00:16]} 59. Rxe6 {[%emt 0:00:33]} c3 {[%emt 0:00:23]} 60. Rb6+ {[%emt 0:00:48]} Kxa3 {[%emt 0:00:12]} 61. f5 {[%emt 0:00:38]} Re4+ {[%emt 0:01:31]} 62. Kd3 {[%emt 0:00:14]} Rxe5 {[%emt 0:00:25]} 63. f6 {[%emt 0:00:39]} c2 {[%emt 0:00:30]} 64. Kxc2 {[%emt 0:00:28]} Re2+ {[%emt 0:00:07]} 65. Kc3 {[%emt 0:00:42]} Rxf2 {[%emt 0:00:07]} 66. Rb5 {[%emt 0:00:19]} Rxf6 {[%emt 0:01:14]} 67. Rxh5 {[%emt 0:00:08]} Rf3+ {[%emt 0:00:05]} 68. Kc2 {[%emt 0:00:45]} Rxg3 {[%emt 0:00:08]} 69. Ra5 {[%emt 0:00:45]} Rh3 {[%emt 0:00:26]} 70. h5 {[%emt 0:00:20]} Kb4 {[%emt 0:00:48]} 71. Ra8 {[%emt 0:00:06]} Rh2+ {[%emt 0:01:07]} 72. Kb1 {[%emt 0:00:35]} Rxh5 {[%emt 0:00:25]} 73. Rg8 {[%emt 0:00:30]} Rh1+ {[%emt 0:00:20]} 74. Ka2 {[%emt 0:00:09]} Rh2+ {[%emt 0:00:07]} 75. Ka1 {[%emt 0:00:08]} Rh3 {[%emt 0:00:16]} 76. Rg1 {[%emt 0:00:14]} Kb3 {[%emt 0:00:08]} 77. Rf1 {[%emt 0:00:21]} Rg3 {[%emt 0:00:41]} 78. Rh1 {[%emt 0:00:05]} Rc3 {[%emt 0:00:15]} 79. Rg1 {[%emt 0:00:08]} a3 {[%emt 0:00:20]} 80. Rh1 {[%emt 0:00:06]} a2 {[%emt 0:00:27]} 81. Rg1 {[%emt 0:00:14]} Rc8 {[%emt 0:00:32]} 82. Rg3+ {[%emt 0:00:08]} Kc2 {[%emt 0:00:13]} 83. Kxa2 {[%emt 0:00:36]} Ra8+ {[%emt 0:00:10]} 84. Ra3 {[%emt 0:00:04]} Rxa3+ {[%emt 0:00:05]} 85. Kxa3 {[%emt 0:00:02]} 1/2-1/2

[Event "Summer Prague Open-A 2022"]
[Site "Prague"]
[Date "2022.08.07"]
[Round "3.15"]
[White "Navaratnam, Ishaan Quan Tze"]
[Black "Mirimanian, Hayk"]
[Result "0-1"]
[ECO "B43"]
[WhiteElo "1409"]
[BlackElo "2228"]
[Annotator "NA RC"]
[PlyCount "44"]
[EventDate "2022.08.05"]
[EventType "swiss"]
[EventCountry "CZE"]
[SourceTitle "playchess.com"]
[Source "ChessBase"]
[SourceQuality "1"]
[TimeControl "40/5400+30:1800+30"]

{[%evp 14,30,37,29,36,42,108,129,80,89,74,89,92,100,120,114,114,34,39]} 1. e4 {[%emt 0:00:07]} c5 {[%emt 0:05:35]} 2. Nf3 {[%emt 0:00:33]} e6 {[%emt 0:00:08]} 3. d4 {[%emt 0:00:09]} cxd4 {[%emt 0:00:13]} 4. Nxd4 {[%emt 0:00:13]} a6 {[%emt 0:00:23]} 5. Nc3 {[%emt 0:00:31]} Qc7 {[%emt 0:00:18]} 6. Bd3 {[%emt 0:04:06]} Nf6 {[%emt 0:04:59]} 7. f4 {[%emt 0:01:36]} d6 {[%emt 0:09:22]} 8. Qe2 {[%emt 0:03:00]} Nbd7 {[%emt 0:01:43]} 9. g4 {[%emt 0:06:30]} e5 {[%emt 0:06:54]} (9... h6 $1 $14) 10. Nf5 {[%emt 0:04:31]} g6 {[%emt 0:16:16]} 11. Ne3 {[%emt 0:05:00]} exf4 {[%emt 0:08:28]} 12. Ned5 {[%emt 0:00:39]} Nxd5 {[%emt 0:06:05]} 13. Nxd5 {[%emt 0:00:41]} Qc6 {[%emt 0:13:04]} 14. Bxf4 {[%emt 0:01:45]} Bg7 {[%emt 0:00:37] [#]} 15. O-O-O {[%emt 0:01:25]} ({White should play} 15. Qf2 $1 $16 {[%cal Rf2h4]}) 15... Ne5 $14 {[%emt 0:00:26]} 16. Bxe5 {[%emt 0:05:48]} Bxe5 {[%emt 0:00:22]} 17. Rhf1 {[%emt 0:05:10]} Be6 {[%emt 0:02:39]} 18. Bc4 {[%emt 0:14:03]} h5 {[%emt 0:11:48]} 19. g5 {[%emt 0:11:21]} Rc8 {[%emt 0:07:41]} 20. Bb3 {[%emt 0:00:34]} Qc5 {[%emt 0:00:01]} 21. Nf6+ {[%emt 0:03:33]} Bxf6 {[%emt 0:02:27]} 22. Rxf6 {[%emt 0:00:26]} Qxg5+ {[%emt 0:00:14]} 0-1

[Event "Summer Prague Open-A 2022"]
[Site "Prague"]
[Date "2022.08.07"]
[Round "3.16"]
[White "Bruchmann, Stephan"]
[Black "Koestner, Laurin"]
[Result "1-0"]
[ECO "B52"]
[WhiteElo "2226"]
[BlackElo "1676"]
[Annotator "NA RC"]
[PlyCount "69"]
[EventDate "2022.08.05"]
[EventType "swiss"]
[EventCountry "CZE"]
[SourceTitle "playchess.com"]
[Source "ChessBase"]
[SourceQuality "1"]
[TimeControl "40/5400+30:1800+30"]

1. e4 {[%emt 0:00:04]} c5 {[%emt 0:00:10]} 2. Nf3 {[%emt 0:00:59]} d6 {[%emt 0:00:09]} 3. Bb5+ {[%emt 0:02:16]} Bd7 {[%emt 0:00:03]} 4. c4 {[%emt 0:00:32]} a6 {[%emt 0:01:37]} 5. Bxd7+ {[%emt 0:00:16]} Nxd7 {[%emt 0:00:03]} 6. Nc3 {[%emt 0:00:41]} Ngf6 {[%emt 0:00:42]} 7. O-O {[%emt 0:00:47]} e6 {[%emt 0:00:42]} 8. d4 {[%emt 0:03:02]} cxd4 {[%emt 0:00:57]} 9. Qxd4 {[%emt 0:00:06]} Be7 {[%emt 0:00:39]} 10. Bg5 {[%emt 0:00:05]} Qc7 {[%emt 0:00:25]} 11. Rac1 {[%emt 0:01:57]} h6 {[%emt 0:00:15]} 12. Bh4 {[%emt 0:00:29]} O-O {[%emt 0:00:54]} 13. Rfd1 {[%emt 0:00:08]} Rfc8 {[%emt 0:00:19]} 14. b3 {[%emt 0:08:14]} Qa5 {[%emt 0:00:44]} 15. Bg3 {[%emt 0:02:49]} Rc6 {[%emt 0:04:03]} 16. Qd2 {[%emt 0:08:01]} Kf8 {[%emt 0:04:31]} 17. Nd4 {[%emt 0:02:48]} Rc7 {[%emt 0:00:02]} 18. f4 {[%emt 0:12:37]} b5 $14 {[%emt 0:47:05]} (18... Rac8 $11 {is more appropriate.}) 19. cxb5 {[%emt 0:07:32]} axb5 {[%emt 0:10:08]} 20. Ndxb5 {[%emt 0:06:38]} Nxe4 {[%emt 0:00:12]} 21. Nxe4 {[%emt 0:00:14]} Rxc1 {[%emt 0:00:09]} 22. Rxc1 {[%emt 0:00:10]} Qxb5 {[%emt 0:00:14]} 23. f5 {[%emt 0:04:20]} d5 {[%emt 0:08:29]} 24. fxe6 {[%emt 0:02:35]} fxe6 {[%emt 0:00:21]} 25. Nf2 {[%emt 0:01:25]} Nf6 {[%emt 0:03:10]} 26. Qe3 {[%emt 0:07:59]} Rxa2 {[%emt 0:06:08]} 27. Qxe6 {[%emt 0:00:22]} Ra8 {[%emt 0:00:25]} 28. h3 {[%emt 0:03:26]} Qxb3 {[%emt 0:03:25]} 29. Kh2 {[%emt 0:00:20]} Re8 {[%emt 0:03:37]} 30. Rc7 {[%emt 0:01:28]} Qa3 {[%emt 0:02:03]} 31. Ng4 {[%emt 0:14:00]} Nxg4+ {[%emt 0:00:56]} 32. hxg4 {[%emt 0:00:08]} Qb4 {[%emt 0:00:55]} 33. Rc2 {[%emt 0:01:47]} Bc5 {[%emt 0:02:56]} 34. Qf5+ {[%emt 0:00:06]} Ke7 {[%emt 0:00:25]} 35. Re2+ {[%emt 0:01:53]} 1-0

[Event "Summer Prague Open-A 2022"]
[Site "Prague"]
[Date "2022.08.07"]
[Round "3.17"]
[White "Pap, Gyula"]
[Black "Kristiansen, Willy M"]
[Result "1/2-1/2"]
[ECO "C67"]
[WhiteElo "2481"]
[BlackElo "2121"]
[Annotator "TA"]
[PlyCount "74"]
[EventDate "2022.08.05"]
[EventType "swiss"]
[EventCountry "CZE"]
[SourceTitle "playchess.com"]
[Source "ChessBase"]
[SourceQuality "1"]
[TimeControl "40/5400+30:1800+30"]

{[%evp 18,74,26,-17,-6,-16,-27,-12,-11,-10,0,0,29,30,37,38,50,50,56,49,45,59,71,40,70,81,69,79,117,116,120,65,110,26,64,25,26,25,27,33,26,20,27,25,18,19,37,9,15,1,2,6,10,0,0,0,0,0,0]} 1. e4 {[%emt 0:03:37]} e5 {[%emt 0:00:19]} 2. Nf3 {[%emt 0:00:42]} Nc6 {[%emt 0:00:13]} 3. Bb5 {[%emt 0:01:39]} Nf6 {[%emt 0:00:38]} 4. O-O {[%emt 0:03:05]} Nxe4 {[%emt 0:00:22]} 5. d4 {[%emt 0:00:07]} Nd6 {[%emt 0:00:30]} 6. Bxc6 {[%emt 0:00:12]} dxc6 {[%emt 0:00:10]} 7. dxe5 {[%emt 0:00:06]} Nf5 {[%emt 0:00:12]} 8. Qxd8+ {[%emt 0:00:08]} Kxd8 {[%emt 0:00:07]} 9. Nc3 {[%emt 0:03:05][%cal Bb1c3,Bc3e2,Be2f4][%mdl 32]} Bd7 {[%emt 0:01:30]} 10. b3 {[%emt 0:08:19]} Kc8 {[%emt 0:05:27] C67: Ruy Lopez: Berlin Defence: 4 0-0 Nxe4.} 11. Bb2 {[%emt 0:00:20]} Be7 {[%emt 0:00:58]} 12. h3 {[%emt 0:08:30]} b6 {[%emt 0:09:54]} 13. Rad1 {[%emt 0:08:13]} h5 {[%emt 0:07:00]} 14. Ne2 {[%emt 0:04:43] [#]} Rd8 $146 {[%emt 0:05:31]} ({Predecessor:} 14... c5 15. Rfe1 Bc6 16. Nh2 a5 17. a4 Kb7 18. c4 Bg5 19. g3 Rad8 20. f4 Be7 {0-1 (27) Shabalov,A (2586)-Harikrishna,P (2666) Wheeling 2011}) 15. Nf4 {[%emt 0:02:46]} h4 {[%emt 0:04:45]} 16. e6 {[%emt 0:03:02]} Bxe6 {[%emt 0:01:26]} 17. Rxd8+ {[%emt 0:05:35]} Kxd8 {[%emt 0:01:26]} 18. Nxe6+ {[%emt 0:00:22]} fxe6 {[%emt 0:00:06]} 19. Re1 {[%emt 0:01:00]} a5 {[%emt 0:01:47]} 20. a4 {[%emt 0:13:09]} Kd7 {[%emt 0:02:36]} 21. Ne5+ {[%emt 0:02:02][%mdl 64] [#] Deflection} Ke8 {[%emt 0:00:43]} (21... Kd6 $2 22. Rd1+ Nd4 23. Rxd4+ $18) 22. Nxc6 {[%emt 0:00:54]} Bd6 {[%emt 0:05:01]} 23. Re4 {[%emt 0:01:52] White is more active.} ({Stronger than} 23. Rxe6+ Kd7 24. Rxd6+ Kxd6 $17) 23... Kf7 {[%emt 0:09:37]} 24. Rc4 {[%emt 0:04:32]} ({White should try} 24. Ne5+ $16 Bxe5 25. Bxe5) 24... Rc8 {[%emt 0:10:19]} 25. Be5 {[%emt 0:15:44]} ({Better is} 25. Ne5+ $16 Ke8 26. Kf1) 25... g5 {[%emt 0:17:12]} 26. Bxd6 {[%emt 0:08:12]} Nxd6 $14 {[%emt 0:00:29][%mdl 4096] Endgame KRN-KRN} 27. Rc3 {[%emt 0:00:05] With the idea Na7.} Ne4 {[%emt 0:03:11]} 28. Rf3+ {[%emt 0:00:54]} Kg7 {[%emt 0:01:06]} 29. Re3 {[%emt 0:01:06]} Nc5 {[%emt 0:00:47]} 30. Kf1 {[%emt 0:00:29]} Rf8 {[%emt 0:01:43]} 31. Ke2 {[%emt 0:00:26]} Rf4 {[%emt 0:01:26]} 32. Ne5 {[%emt 0:00:53]} Kf6 {[%emt 0:01:58] The position is equal.} 33. Nd3 {[%emt 0:00:39]} Nxd3 {[%emt 0:01:01]} 34. Rxd3 {[%emt 0:00:07]} Ke7 {[%emt 0:05:46]} 35. Ke3 {[%emt 0:00:08]} Rf5 {[%emt 0:00:14]} 36. Rd4 {[%emt 0:00:24]} Rc5 {[%emt 0:00:51]} 37. Kd3 {[%emt 0:00:55]} Rf5 {[%emt 0:00:18] Weighted Error Value: White=0.13 (very precise) /Black=0.08 (flawless)} 1/2-1/2

[Event "Summer Prague Open-A 2022"]
[Site "Prague"]
[Date "2022.08.07"]
[Round "3.18"]
[White "Schmaltz, Roland"]
[Black "Schroer, Marcel"]
[Result "1-0"]
[ECO "B12"]
[WhiteElo "2466"]
[BlackElo "2119"]
[Annotator "TA"]
[PlyCount "75"]
[EventDate "2022.08.05"]
[EventType "swiss"]
[EventCountry "CZE"]
[SourceTitle "playchess.com"]
[Source "ChessBase"]
[SourceQuality "1"]
[TimeControl "40/5400+30:1800+30"]

{[%evp 9,75,16,25,24,20,9,44,35,34,25,41,59,43,51,56,48,55,47,78,65,87,87,81,101,118,108,124,112,122,123,142,139,144,127,127,125,145,123,169,115,119,77,102,42,76,57,84,97,228,-12,224,154,670,664,1107,1079,29986,29987,29991,5081,5118,5110,29995,29996,29996,29997,29997,29998]} 1. e4 {[%emt 0:19:53]} c6 {[%emt 0:00:26]} 2. d4 {[%emt 0:00:30]} d5 {[%emt 0:00:06]} 3. e5 {[%emt 0:00:04]} Bf5 {[%emt 0:00:23]} 4. Nd2 {[%emt 0:00:05]} e6 {[%emt 0:00:16]} 5. Nb3 {[%emt 0:00:05]} a6 {[%emt 0:00:17][%cal Oc6c5]} 6. Nf3 {[%emt 0:00:40] B12: Caro-Kann: Advance Variation.} c5 {[%emt 0:00:16] [#]} 7. Be2 $146 {[%emt 0:03:49]} ({Predecessor:} 7. dxc5 Bxc5 8. Nxc5 Qa5+ 9. c3 Qxc5 10. Nd4 Ne7 11. Qa4+ Nbc6 12. Be3 Qa5 13. Qxa5 Nxa5 14. Nxf5 Nxf5 {1-0 (43) So,W (2770)-Abdusattorov,N (2627) Chess.com INT 2020}) 7... Nc6 {[%emt 0:03:07] Threatens to win with ...c4.} 8. Nxc5 {[%emt 0:00:43] White is slightly better.} (8. dxc5 {with more complications.} Bxc5 9. Nxc5 Qa5+ 10. c3) 8... Bxc5 {[%emt 0:00:05]} 9. dxc5 {[%emt 0:00:07]} Qa5+ {[%emt 0:00:09]} 10. c3 {[%emt 0:00:27]} Qxc5 {[%emt 0:00:05]} 11. Be3 {[%emt 0:00:56]} Qa5 {[%emt 0:02:10]} 12. Qb3 {[%emt 0:05:00]} Qc7 {[%emt 0:05:45]} 13. Bb6 $36 {[%emt 0:02:08][%mdl 2048] White has the initiative.} Qd7 {[%emt 0:07:59]} 14. Nd4 {[%emt 0:09:31]} Nge7 {[%emt 0:02:42]} 15. Nxf5 {[%emt 0:02:16]} Nxf5 {[%emt 0:00:06]} 16. f4 {[%emt 0:00:41]} h5 {[%emt 0:02:30]} 17. O-O-O {[%emt 0:02:39]} Rc8 {[%emt 0:05:07]} 18. Kb1 {[%emt 0:03:21]} g6 {[%emt 0:02:08]} 19. g3 {[%emt 0:02:28]} Kf8 {[%emt 0:04:27]} 20. Rhg1 {[%emt 0:02:13]} Kg7 {[%emt 0:05:20]} 21. h3 {[%emt 0:00:22]} Nfe7 {[%emt 0:09:59]} 22. Bd3 {[%emt 0:01:35]} Rcg8 {[%emt 0:03:07]} 23. c4 {[%emt 0:02:38]} Rc8 {[%emt 0:03:48] [#]} (23... Re8 $16 24. Ka1 Nc8) 24. Qa3 {[%emt 0:05:37]} (24. Be4 $1 $18 {[%mdl 512]}) 24... Qe8 {[%emt 0:02:40]} 25. b3 {[%emt 0:05:24] 0x0.00198aaa9539dp-1022s more active pieces.} a5 {[%emt 0:07:50]} 26. Bc5 {[%emt 0:00:15] Prevents Nb4.} (26. Bxa5 $2 Ra8 27. b4 b6 $19) ({White should try} 26. Be2 $16) 26... Qd8 {[%emt 0:11:12]} 27. g4 {[%emt 0:01:28]} hxg4 {[%emt 0:01:27]} 28. hxg4 {[%emt 0:00:05] Black must now prevent f5.} dxc4 {[%emt 0:04:32]} (28... Nb4 $16 {is a better defense.} 29. Bxb4 axb4) 29. Bxg6 $2 {[%emt 0:00:26]} Qe8 {[%emt 0:01:33]} (29... Nd5 $1 $11 {and Black stays safe.} 30. bxc4 Ncb4 31. cxd5 Rxc5 32. dxe6 Rd5 33. Rxd5 Qxd5) 30. Be4 $18 {[%emt 0:00:23] aiming for f5. This bishop pair is nice.} cxb3 $2 {[%emt 0:00:27]} (30... Nb4 $16) 31. f5 {[%emt 0:00:21]} bxa2+ {[%emt 0:00:57]} 32. Ka1 {[%emt 0:00:20]} Kg8 {[%emt 0:05:42]} 33. Rh1 {[%emt 0:00:28]} exf5 {[%emt 0:07:24]} 34. gxf5 {[%emt 0:00:20]} (34. Rxh8+ $142 Kxh8 35. Qh3+ Kg7 36. gxf5 f6 37. exf6+ Kf7 38. Qh5+ Kg8 39. Rg1+ Qg6 40. fxg6 Re8 41. Qh7+ Kf8 42. Qh8#) 34... Rxh1 {[%emt 0:00:10]} 35. Rxh1 {[%emt 0:00:59] Qh3 would kill now.} Nxf5 {[%emt 0:00:45]} 36. Rg1+ {[%emt 0:00:42] White mates.} (36. Bxf5 Qxe5+ 37. Qb2 Qxb2+ 38. Kxb2 Rd8 $16) 36... Ng7 {[%emt 0:00:07] [#]} 37. Rxg7+ $1 {[%emt 0:00:10][%mdl 512]} Kxg7 {[%emt 0:00:18]} 38. Qg3+ {[%emt 0:00:05] Weighted Error Value: White=0.21 (precise) /Black=0.85} 1-0